[Event "*** Titled Tuesday Blitz"]
[Site "Chess.com"]
[Date "2020.05.12"]
[Round "3"]
[White "Kingsman132"]
[Black "ZoltanChef"]
[Result "1-0"]
[WhiteElo "2349"]
[BlackElo "2137"]
[TimeControl "180+1"]
[EndTime "10:29:13 PDT"]
[Termination "Kingsman132 won on time"]

1. e4 {[%clk 0:02:34.2]} 1... g6 {[%clk 0:02:57.1]} 2. Nf3 {[%clk 0:02:34.2]}
2... Bg7 {[%clk 0:02:55.7]} 3. d4 {[%clk 0:02:34.2]} 3... c5 {[%clk 0:02:56.2]}
4. c3 {[%clk 0:02:30]} 4... Nf6 {[%clk 0:02:48.9]} 5. e5 {[%clk 0:02:26.6]} 5...
Ne4 {[%clk 0:02:46.4]} 6. d5 {[%clk 0:02:27.1]} 6... O-O {[%clk 0:02:32.5]} 7.
Bd3 {[%clk 0:02:20.4]} 7... f5 {[%clk 0:02:32.3]} 8. O-O {[%clk 0:02:19.9]} 8...
e6 {[%clk 0:02:12.7]} 9. d6 {[%clk 0:02:19]} 9... Nc6 {[%clk 0:02:12.1]} 10. Bf4
{[%clk 0:02:11.4]} 10... g5 {[%clk 0:02:10.8]} 11. Bxe4 {[%clk 0:02:05.9]} 11...
gxf4 {[%clk 0:02:10.5]} 12. Bxc6 {[%clk 0:01:58]} 12... bxc6 {[%clk 0:02:11.4]}
13. Re1 {[%clk 0:01:55.5]} 13... Rb8 {[%clk 0:02:08.5]} 14. Qd2 {[%clk
0:01:50.9]} 14... Bh6 {[%clk 0:02:06.8]} 15. b3 {[%clk 0:01:45.7]} 15... Kh8
{[%clk 0:02:06.4]} 16. c4 {[%clk 0:01:45.5]} 16... Rg8 {[%clk 0:02:04]} 17. Kh1
{[%clk 0:01:42.2]} 17... a5 {[%clk 0:01:53.6]} 18. Nc3 {[%clk 0:01:40.6]} 18...
Ba6 {[%clk 0:01:52.4]} 19. Ne2 {[%clk 0:01:37.3]} 19... a4 {[%clk 0:01:48.9]}
20. Nxf4 {[%clk 0:01:34.6]} 20... Rg4 {[%clk 0:01:38.8]} 21. g3 {[%clk
0:01:32.7]} 21... axb3 {[%clk 0:01:35.5]} 22. axb3 {[%clk 0:01:32.3]} 22... Rxb3
{[%clk 0:01:32.2]} 23. Rxa6 {[%clk 0:01:31.1]} 23... Rxf3 {[%clk 0:01:32.2]} 24.
Rea1 {[%clk 0:01:28.8]} 24... Rg8 {[%clk 0:01:32.1]} 25. Qe2 {[%clk 0:01:03.3]}
25... Rb3 {[%clk 0:01:11.8]} 26. Nh5 {[%clk 0:00:58.9]} 26... Qg5 {[%clk
0:01:09.3]} 27. Nf6 {[%clk 0:00:55]} 27... Rgb8 {[%clk 0:01:07.7]} 28. Ra8
{[%clk 0:00:53.9]} 28... f4 {[%clk 0:01:02.5]} 29. Rxb8+ {[%clk 0:00:52.9]}
29... Rxb8 {[%clk 0:01:02]} 30. Qe4 {[%clk 0:00:48.4]} 30... Qg7 {[%clk
0:00:57.2]} 31. gxf4 {[%clk 0:00:47.8]} 31... Qf7 {[%clk 0:00:52.3]} 32. Rg1
{[%clk 0:00:47.2]} 32... Rd8 {[%clk 0:00:36.4]} 33. Qf3 {[%clk 0:00:46.6]} 33...
Bg7 {[%clk 0:00:34.8]} 34. Qh5 {[%clk 0:00:44.4]} 34... Qxh5 {[%clk 0:00:33.6]}
35. Nxh5 {[%clk 0:00:45.3]} 35... Bh6 {[%clk 0:00:33.8]} 36. Rg4 {[%clk
0:00:44.9]} 36... Rf8 {[%clk 0:00:33]} 37. Nf6 {[%clk 0:00:44.2]} 37... Rd8
{[%clk 0:00:31.6]} 38. Kg2 {[%clk 0:00:44.5]} 38... Bg7 {[%clk 0:00:29.8]} 39.
Nh5 {[%clk 0:00:44.8]} 39... Bh6 {[%clk 0:00:30]} 40. Kf3 {[%clk 0:00:45.3]}
40... Rb8 {[%clk 0:00:28.8]} 41. Nf6 {[%clk 0:00:44.5]} 41... Rd8 {[%clk
0:00:27.1]} 42. Ke4 {[%clk 0:00:44.9]} 42... Bg7 {[%clk 0:00:26.3]} 43. Nh5
{[%clk 0:00:45.5]} 43... Bh6 {[%clk 0:00:26.7]} 44. f5 {[%clk 0:00:45.5]} 44...
exf5+ {[%clk 0:00:26.5]} 45. Kxf5 {[%clk 0:00:46.4]} 45... Rf8+ {[%clk
0:00:26.5]} 46. Nf6 {[%clk 0:00:47]} 46... Bg7 {[%clk 0:00:24.8]} 47. h4 {[%clk
0:00:42.9]} 47... Rf7 {[%clk 0:00:16]} 48. h5 {[%clk 0:00:41.4]} 48... Rf8
{[%clk 0:00:15.1]} 49. f4 {[%clk 0:00:41.6]} 49... Rf7 {[%clk 0:00:14.8]} 50.
Rg2 {[%clk 0:00:39.9]} 50... Rf8 {[%clk 0:00:14.2]} 51. Ra2 {[%clk 0:00:39.3]}
51... Bxf6 {[%clk 0:00:09.7]} 52. exf6 {[%clk 0:00:40.2]} 52... h6 {[%clk
0:00:08.7]} 53. Kg6 {[%clk 0:00:38.2]} 53... Rg8+ {[%clk 0:00:05.3]} 54. Kxh6
{[%clk 0:00:38.3]} 54... Rf8 {[%clk 0:00:03.1]} 55. Kg6 {[%clk 0:00:38.2]} 1-0

[Event "*** Titled Tuesday Blitz"]
[Site "Chess.com"]
[Date "2020.05.12"]
[Round "3"]
[White "Enriquack"]
[Black "PavlovDanila"]
[Result "0-1"]
[WhiteElo "2274"]
[BlackElo "2703"]
[TimeControl "180+1"]
[EndTime "10:29:14 PDT"]
[Termination "PavlovDanila won by resignation"]

1. e4 {[%clk 0:03:00.9]} 1... e6 {[%clk 0:03:00]} 2. d4 {[%clk 0:03:00.8]} 2...
d5 {[%clk 0:03:00.5]} 3. Nc3 {[%clk 0:03:01]} 3... Nf6 {[%clk 0:03:00.5]} 4. Bg5
{[%clk 0:03:00.3]} 4... Be7 {[%clk 0:03:00.4]} 5. e5 {[%clk 0:03:00.7]} 5...
Nfd7 {[%clk 0:03:00.7]} 6. h4 {[%clk 0:03:01.3]} 6... Bxg5 {[%clk 0:03:00.7]} 7.
hxg5 {[%clk 0:03:02.2]} 7... Qxg5 {[%clk 0:03:01]} 8. Nh3 {[%clk 0:03:01.7]}
8... Qe7 {[%clk 0:03:00.8]} 9. Nf4 {[%clk 0:02:57.5]} 9... Nb6 {[%clk
0:02:59.9]} 10. Qg4 {[%clk 0:02:50.7]} 10... g6 {[%clk 0:02:59.2]} 11. a4 {[%clk
0:02:43.4]} 11... Nc6 {[%clk 0:02:38.6]} 12. a5 {[%clk 0:02:38.6]} 12... Qb4
{[%clk 0:02:15.8]} 13. Nd3 {[%clk 0:02:14.7]} 13... Qxd4 {[%clk 0:02:15.8]} 14.
Qg5 {[%clk 0:01:50.5]} 14... Nc4 {[%clk 0:01:55.6]} 15. Rh4 {[%clk 0:01:41.9]}
15... f6 {[%clk 0:01:16.7]} 16. Qh6 {[%clk 0:01:33.7]} 16... N4xe5 {[%clk
0:01:00.2]} 17. Rxd4 {[%clk 0:01:29.9]} 17... Nxd4 {[%clk 0:01:01.1]} 18. O-O-O
{[%clk 0:01:25.9]} 18... Nf5 {[%clk 0:01:00.9]} 19. Qh2 {[%clk 0:01:23.6]} 19...
Nxd3+ {[%clk 0:00:54.7]} 20. Bxd3 {[%clk 0:01:22.9]} 20... Nd6 {[%clk
0:00:49.6]} 21. Bxg6+ {[%clk 0:01:14.1]} 21... Kd7 {[%clk 0:00:45.7]} 22. Bd3
{[%clk 0:01:10.7]} 22... c6 {[%clk 0:00:42.2]} 23. Qh6 {[%clk 0:01:08.3]} 23...
Ne8 {[%clk 0:00:42.1]} 24. Bg6 {[%clk 0:00:55.5]} 24... f5 {[%clk 0:00:32.4]}
25. Ne2 {[%clk 0:00:46]} 25... e5 {[%clk 0:00:27.2]} 26. Bxf5+ {[%clk
0:00:44.4]} 26... Kc7 {[%clk 0:00:26.9]} 27. Bg6 {[%clk 0:00:40.4]} 27... Nd6
{[%clk 0:00:26]} 28. Bh5 {[%clk 0:00:36.8]} 28... Bd7 {[%clk 0:00:24.5]} 29. Ng3
{[%clk 0:00:36]} 29... Raf8 {[%clk 0:00:20.3]} 30. f3 {[%clk 0:00:34.8]} 30...
Rhg8 {[%clk 0:00:18.8]} 31. Qxh7 {[%clk 0:00:33.3]} 31... Rxg3 {[%clk
0:00:18.2]} 32. Bg4 {[%clk 0:00:32.4]} 32... Rd8 {[%clk 0:00:16.4]} 33. Qh2
{[%clk 0:00:31.4]} 33... Rxg4 {[%clk 0:00:16.3]} 34. fxg4 {[%clk 0:00:32.3]}
34... Bxg4 {[%clk 0:00:16.4]} 35. Rf1 {[%clk 0:00:31.6]} 35... Re8 {[%clk
0:00:16.2]} 36. a6 {[%clk 0:00:28.8]} 36... b6 {[%clk 0:00:16.1]} 37. Qh7+
{[%clk 0:00:27.6]} 37... Bd7 {[%clk 0:00:16.2]} 38. Rf6 {[%clk 0:00:26.6]} 38...
e4 {[%clk 0:00:16.4]} 39. Rf1 {[%clk 0:00:25.7]} 39... d4 {[%clk 0:00:15.5]} 40.
Re1 {[%clk 0:00:25.7]} 40... c5 {[%clk 0:00:15.8]} 41. Qh2 {[%clk 0:00:22.8]}
41... e3 {[%clk 0:00:15.6]} 42. Qf4 {[%clk 0:00:21.6]} 42... Kc6 {[%clk
0:00:15.5]} 43. g4 {[%clk 0:00:21.5]} 43... Re4 {[%clk 0:00:14.9]} 44. Qf3
{[%clk 0:00:21.5]} 44... Bxg4 {[%clk 0:00:15.1]} 45. Qg2 {[%clk 0:00:21.1]}
45... Kc7 {[%clk 0:00:14.2]} 46. c3 {[%clk 0:00:20.7]} 46... d3 {[%clk
0:00:13.8]} 47. Rxe3 {[%clk 0:00:18.9]} 47... Rxe3 {[%clk 0:00:14]} 48. Qxg4
{[%clk 0:00:19.2]} 48... Re7 {[%clk 0:00:05]} 49. Kd2 {[%clk 0:00:18.5]} 49...
c4 {[%clk 0:00:04.9]} 50. b3 {[%clk 0:00:14.9]} 50... Ne4+ {[%clk 0:00:03.7]}
51. Kc1 {[%clk 0:00:14.2]} 51... d2+ {[%clk 0:00:02.8]} 52. Kc2 {[%clk
0:00:13.2]} 52... Rd7 {[%clk 0:00:01.6]} 53. Qd1 {[%clk 0:00:10.6]} 53... Nf2
{[%clk 0:00:01.3]} 54. Qxd2 {[%clk 0:00:05.7]} 54... cxb3+ {[%clk 0:00:01.3]}
55. Kc1 {[%clk 0:00:05.2]} 55... Rxd2 {[%clk 0:00:02.2]} 56. Kxd2 {[%clk
0:00:06.1]} 56... Ne4+ {[%clk 0:00:02.8]} 57. Ke3 {[%clk 0:00:06.3]} 57... Nc5
{[%clk 0:00:03.7]} 0-1

[Event "*** Titled Tuesday Blitz"]
[Site "Chess.com"]
[Date "2020.05.12"]
[Round "3"]
[White "GMKrikor"]
[Black "Tashik"]
[Result "1-0"]
[WhiteElo "2822"]
[BlackElo "2442"]
[TimeControl "180+1"]
[EndTime "10:29:15 PDT"]
[Termination "GMKrikor won by resignation"]

1. Nf3 {[%clk 0:03:00.9]} 1... d5 {[%clk 0:02:59.3]} 2. c4 {[%clk 0:03:00.1]}
2... e6 {[%clk 0:02:58.9]} 3. e3 {[%clk 0:02:57.2]} 3... Nf6 {[%clk 0:02:58.7]}
4. Nc3 {[%clk 0:02:55.4]} 4... c5 {[%clk 0:02:57.8]} 5. cxd5 {[%clk 0:02:55]}
5... exd5 {[%clk 0:02:56.2]} 6. d4 {[%clk 0:02:50.5]} 6... Nc6 {[%clk
0:02:56.1]} 7. Bb5 {[%clk 0:02:25.3]} 7... cxd4 {[%clk 0:02:56]} 8. exd4 {[%clk
0:02:25.3]} 8... Bd6 {[%clk 0:02:51.4]} 9. O-O {[%clk 0:02:20.8]} 9... O-O
{[%clk 0:02:51.3]} 10. Bg5 {[%clk 0:02:20.7]} 10... Be6 {[%clk 0:02:40.2]} 11.
Re1 {[%clk 0:02:16.2]} 11... h6 {[%clk 0:02:38.9]} 12. Bh4 {[%clk 0:02:12]}
12... Rc8 {[%clk 0:02:32.2]} 13. Rc1 {[%clk 0:02:08]} 13... Be7 {[%clk
0:02:12.3]} 14. Ne5 {[%clk 0:01:56]} 14... Qb6 {[%clk 0:02:08.4]} 15. Bxc6
{[%clk 0:01:54.7]} 15... bxc6 {[%clk 0:02:08.2]} 16. Na4 {[%clk 0:01:54.1]}
16... Qb5 {[%clk 0:01:53.1]} 17. Ng6 {[%clk 0:01:26.7]} 17... fxg6 {[%clk
0:01:42]} 18. Rxe6 {[%clk 0:01:26.2]} 18... Rf7 {[%clk 0:01:08]} 19. b3 {[%clk
0:01:26]} 19... Ba3 {[%clk 0:00:59.7]} 20. Rc2 {[%clk 0:01:22]} 20... g5 {[%clk
0:00:56.9]} 21. Bg3 {[%clk 0:01:21.7]} 21... Ne4 {[%clk 0:00:57.4]} 22. Qe2
{[%clk 0:01:16.9]} 22... Qxe2 {[%clk 0:00:54.6]} 23. Rxe2 {[%clk 0:01:14.9]}
23... c5 {[%clk 0:00:43.8]} 24. dxc5 {[%clk 0:01:08.9]} 24... Bxc5 {[%clk
0:00:37.7]} 25. Nxc5 {[%clk 0:00:38.7]} 25... Rxc5 {[%clk 0:00:38.6]} 26. f3
{[%clk 0:00:39.1]} 26... Nxg3 {[%clk 0:00:32.1]} 27. hxg3 {[%clk 0:00:40]} 27...
Rd7 {[%clk 0:00:28]} 28. Kf2 {[%clk 0:00:33.2]} 28... Kf7 {[%clk 0:00:27.5]} 29.
R6e5 {[%clk 0:00:24.5]} 29... Rc6 {[%clk 0:00:24]} 30. Rd2 {[%clk 0:00:23.7]}
30... d4 {[%clk 0:00:24.2]} 31. Re4 {[%clk 0:00:22]} 31... Rcd6 {[%clk
0:00:18.6]} 32. f4 {[%clk 0:00:18]} 32... gxf4 {[%clk 0:00:17.8]} 33. gxf4
{[%clk 0:00:18.9]} 33... Kf6 {[%clk 0:00:16.8]} 34. Kf3 {[%clk 0:00:19.5]} 34...
g5 {[%clk 0:00:15.9]} 35. g4 {[%clk 0:00:10.7]} 35... gxf4 {[%clk 0:00:15.7]}
36. Kxf4 {[%clk 0:00:11.6]} 36... Kg6 {[%clk 0:00:16]} 37. Re5 {[%clk 0:00:11]}
37... Kf6 {[%clk 0:00:15]} 38. Ke4 {[%clk 0:00:11]} 38... Kg6 {[%clk 0:00:10.4]}
39. Rd3 {[%clk 0:00:11]} 39... Kf6 {[%clk 0:00:10.3]} 40. b4 {[%clk 0:00:11.2]}
40... Kg6 {[%clk 0:00:10.4]} 41. a4 {[%clk 0:00:11.4]} 41... Rf6 {[%clk
0:00:08.3]} 42. Rxd4 {[%clk 0:00:10.4]} 42... Rxd4+ {[%clk 0:00:08]} 43. Kxd4
{[%clk 0:00:10.9]} 43... Rf1 {[%clk 0:00:07.5]} 44. Re7 {[%clk 0:00:08.4]} 44...
Rf4+ {[%clk 0:00:06.2]} 45. Kc5 {[%clk 0:00:08]} 45... Rxg4 {[%clk 0:00:05.9]}
46. Rxa7 {[%clk 0:00:08.2]} 46... h5 {[%clk 0:00:06.5]} 47. Ra8 {[%clk
0:00:07.8]} 47... h4 {[%clk 0:00:05.9]} 48. Rg8+ {[%clk 0:00:07.5]} 48... Kf5
{[%clk 0:00:05.5]} 49. Rh8 {[%clk 0:00:06.2]} 49... Kg5 {[%clk 0:00:04.1]} 50.
a5 {[%clk 0:00:06.4]} 50... h3 {[%clk 0:00:04.2]} 51. Rxh3 {[%clk 0:00:05.4]}
1-0

[Event "*** Titled Tuesday Blitz"]
[Site "Chess.com"]
[Date "2020.05.12"]
[Round "3"]
[White "Fandorine"]
[Black "vaishali2001"]
[Result "1/2-1/2"]
[WhiteElo "2859"]
[BlackElo "2645"]
[TimeControl "180+1"]
[EndTime "10:29:16 PDT"]
[Termination "Game drawn by repetition"]

1. e4 {[%clk 0:03:00.9]} 1... e5 {[%clk 0:02:57.2]} 2. Nf3 {[%clk 0:03:00.8]}
2... Nc6 {[%clk 0:02:57.7]} 3. d4 {[%clk 0:03:00.1]} 3... exd4 {[%clk
0:02:57.4]} 4. Nxd4 {[%clk 0:03:01]} 4... Nf6 {[%clk 0:02:57.4]} 5. Nxc6 {[%clk
0:03:01.2]} 5... bxc6 {[%clk 0:02:57.3]} 6. Bd3 {[%clk 0:03:01.9]} 6... d5
{[%clk 0:02:50.8]} 7. exd5 {[%clk 0:03:02.8]} 7... cxd5 {[%clk 0:02:51.5]} 8.
O-O {[%clk 0:03:03.6]} 8... Be7 {[%clk 0:02:50.7]} 9. c4 {[%clk 0:02:59.5]} 9...
c6 {[%clk 0:02:44.6]} 10. Nc3 {[%clk 0:02:49.2]} 10... O-O {[%clk 0:02:43.3]}
11. cxd5 {[%clk 0:02:44.1]} 11... cxd5 {[%clk 0:02:44.2]} 12. Bg5 {[%clk
0:02:41.6]} 12... Rb8 {[%clk 0:02:40.7]} 13. b3 {[%clk 0:02:34.2]} 13... h6
{[%clk 0:02:33]} 14. Bh4 {[%clk 0:02:25.7]} 14... d4 {[%clk 0:02:24.1]} 15. Bxf6
{[%clk 0:02:16.6]} 15... Bxf6 {[%clk 0:02:25]} 16. Ne4 {[%clk 0:02:16.8]} 16...
Bb7 {[%clk 0:02:17.8]} 17. Rc1 {[%clk 0:02:03.7]} 17... Re8 {[%clk 0:02:06.5]}
18. Re1 {[%clk 0:01:55.5]} 18... Bxe4 {[%clk 0:02:00.1]} 19. Bxe4 {[%clk
0:01:48.8]} 19... Qa5 {[%clk 0:01:54.3]} 20. Re2 {[%clk 0:01:21.8]} 20... Rbc8
{[%clk 0:01:33.9]} 21. Rxc8 {[%clk 0:01:19.9]} 21... Rxc8 {[%clk 0:01:34.8]} 22.
g3 {[%clk 0:01:19.2]} 22... g6 {[%clk 0:01:16.8]} 23. Bd3 {[%clk 0:01:14.8]}
23... Kg7 {[%clk 0:01:13.5]} 24. Bc4 {[%clk 0:01:13.9]} 24... Rd8 {[%clk
0:01:03.1]} 25. Qd3 {[%clk 0:01:13.2]} 25... Qc3 {[%clk 0:00:59.3]} 26. Kg2
{[%clk 0:01:09.6]} 26... Rd7 {[%clk 0:00:52.1]} 27. Rc2 {[%clk 0:00:55.6]} 27...
Qb4 {[%clk 0:00:48.5]} 28. h4 {[%clk 0:00:53.8]} 28... h5 {[%clk 0:00:48.1]} 29.
Qf3 {[%clk 0:00:48.7]} 29... Qd6 {[%clk 0:00:44.6]} 30. Bd3 {[%clk 0:00:46]}
30... Rc7 {[%clk 0:00:45]} 31. Rxc7 {[%clk 0:00:42.8]} 31... Qxc7 {[%clk
0:00:45.9]} 32. Bc4 {[%clk 0:00:40.6]} 32... Qe7 {[%clk 0:00:35.5]} 33. Qd5
{[%clk 0:00:39.2]} 33... Be5 {[%clk 0:00:29.2]} 34. b4 {[%clk 0:00:34.1]} 34...
Qf6 {[%clk 0:00:20.2]} 35. a4 {[%clk 0:00:26.9]} 35... Qe6 {[%clk 0:00:17.3]}
36. Qxe6 {[%clk 0:00:21.7]} 36... fxe6 {[%clk 0:00:18.2]} 37. Bxe6 {[%clk
0:00:20.9]} 37... d3 {[%clk 0:00:16.2]} 38. b5 {[%clk 0:00:19.8]} 38... d2
{[%clk 0:00:14.6]} 39. Bb3 {[%clk 0:00:20.3]} 39... Bc7 {[%clk 0:00:13.6]} 40.
Bc2 {[%clk 0:00:16]} 40... Kf6 {[%clk 0:00:13.7]} 41. f4 {[%clk 0:00:13.7]}
41... Bb6 {[%clk 0:00:13.8]} 42. Kf3 {[%clk 0:00:13.8]} 42... Bc5 {[%clk
0:00:13]} 43. Ke2 {[%clk 0:00:13.1]} 43... Bb6 {[%clk 0:00:13.3]} 44. Kf3 {[%clk
0:00:11.7]} 44... Ba5 {[%clk 0:00:13]} 45. g4 {[%clk 0:00:10.3]} 45... hxg4+
{[%clk 0:00:12.7]} 46. Kxg4 {[%clk 0:00:10.8]} 46... Bc7 {[%clk 0:00:13.1]} 47.
Kf3 {[%clk 0:00:09.6]} 47... Bb6 {[%clk 0:00:12.9]} 48. Ke2 {[%clk 0:00:05.8]}
48... Ba5 {[%clk 0:00:12.8]} 49. Be4 {[%clk 0:00:04.1]} 49... Kg7 {[%clk
0:00:12.5]} 50. Bc2 {[%clk 0:00:04.3]} 50... Kh6 {[%clk 0:00:12.4]} 51. Kf3
{[%clk 0:00:03.3]} 51... Kh5 {[%clk 0:00:12.7]} 52. Ke2 {[%clk 0:00:01.9]} 52...
Kxh4 {[%clk 0:00:11.8]} 53. Bxg6 {[%clk 0:00:01.9]} 53... Kg4 {[%clk 0:00:12.2]}
54. f5 {[%clk 0:00:02.4]} 54... Kg5 {[%clk 0:00:12.6]} 55. Kd1 {[%clk
0:00:02.9]} 55... Kf6 {[%clk 0:00:13]} 56. Bh7 {[%clk 0:00:03.1]} 56... Bb4
{[%clk 0:00:13.2]} 57. Bg6 {[%clk 0:00:04]} 57... Ba5 {[%clk 0:00:13.7]} 58. Kc2
{[%clk 0:00:04.9]} 58... Bb4 {[%clk 0:00:14]} 59. Kd1 {[%clk 0:00:04.5]} 59...
Ba5 {[%clk 0:00:14.4]} 1/2-1/2

[Event "*** Titled Tuesday Blitz"]
[Site "Chess.com"]
[Date "2020.05.12"]
[Round "3"]
[White "2346PL"]
[Black "Klaus1995"]
[Result "1-0"]
[WhiteElo "2461"]
[BlackElo "1780"]
[TimeControl "180+1"]
[EndTime "10:29:16 PDT"]
[Termination "2346PL won on time"]

1. d4 {[%clk 0:03:00.9]} 1... Nf6 {[%clk 0:02:59]} 2. Bg5 {[%clk 0:03:00.9]}
2... e6 {[%clk 0:02:59]} 3. Nf3 {[%clk 0:03:00.7]} 3... d5 {[%clk 0:02:58.2]} 4.
e3 {[%clk 0:03:01]} 4... c5 {[%clk 0:02:57.6]} 5. c3 {[%clk 0:03:01.2]} 5... Bd6
{[%clk 0:02:55]} 6. Nbd2 {[%clk 0:02:59.8]} 6... Nbd7 {[%clk 0:02:53.9]} 7. Be2
{[%clk 0:02:56.8]} 7... a6 {[%clk 0:02:53.3]} 8. a4 {[%clk 0:02:50.3]} 8... b6
{[%clk 0:02:51.7]} 9. e4 {[%clk 0:02:49.1]} 9... dxe4 {[%clk 0:02:49.8]} 10.
Nxe4 {[%clk 0:02:48.9]} 10... Be7 {[%clk 0:02:50.3]} 11. dxc5 {[%clk 0:02:44.5]}
11... Nxe4 {[%clk 0:02:49.5]} 12. Bxe7 {[%clk 0:02:42.6]} 12... Qxe7 {[%clk
0:02:49.2]} 13. Qd4 {[%clk 0:02:34.2]} 13... Ndxc5 {[%clk 0:02:14.8]} 14. Qxg7
{[%clk 0:02:33.7]} 14... Qf6 {[%clk 0:02:11.9]} 15. Qg4 {[%clk 0:02:31.2]} 15...
Nxc3 {[%clk 0:01:58.8]} 16. Bc4 {[%clk 0:02:10.3]} 16... N3e4 {[%clk 0:01:41]}
17. O-O {[%clk 0:02:09.8]} 17... h5 {[%clk 0:01:31.6]} 18. Qh4 {[%clk
0:01:54.3]} 18... Qxh4 {[%clk 0:01:25.7]} 19. Nxh4 {[%clk 0:01:55.2]} 19... Bb7
{[%clk 0:01:22.2]} 20. Rfe1 {[%clk 0:01:52.6]} 20... Rg8 {[%clk 0:01:21.1]} 21.
b4 {[%clk 0:01:49]} 21... Nd7 {[%clk 0:01:05.6]} 22. f3 {[%clk 0:01:49.1]} 22...
Nd2 {[%clk 0:01:02.1]} 23. Ba2 {[%clk 0:01:46.9]} 23... Nxf3+ {[%clk 0:01:00.8]}
24. Nxf3 {[%clk 0:01:46.2]} 24... Bxf3 {[%clk 0:01:01.3]} 25. g3 {[%clk
0:01:47.1]} 25... h4 {[%clk 0:01:00.6]} 26. Kf2 {[%clk 0:01:46.8]} 26... Bc6
{[%clk 0:00:59.2]} 27. Bc4 {[%clk 0:01:22.6]} 27... hxg3+ {[%clk 0:00:56.8]} 28.
hxg3 {[%clk 0:01:22.4]} 28... b5 {[%clk 0:00:53.4]} 29. Bxe6 {[%clk 0:01:21.3]}
29... bxa4 {[%clk 0:00:45.8]} 30. Bd5+ {[%clk 0:01:18.7]} 30... Kd8 {[%clk
0:00:45.3]} 31. Bxc6 {[%clk 0:01:19]} 31... Rc8 {[%clk 0:00:44.8]} 32. Bxa4
{[%clk 0:01:11.9]} 32... Rc3 {[%clk 0:00:44.4]} 33. Rad1 {[%clk 0:01:08.4]}
33... Rc7 {[%clk 0:00:36]} 34. Rd6 {[%clk 0:01:06.3]} 34... Kc8 {[%clk
0:00:35.7]} 35. Rxa6 {[%clk 0:01:02.3]} 35... Kb7 {[%clk 0:00:34.8]} 36. Rf6
{[%clk 0:00:54.4]} 36... Nb6 {[%clk 0:00:33.2]} 37. Bb3 {[%clk 0:00:53.6]} 37...
Rg4 {[%clk 0:00:27.6]} 38. Rf4 {[%clk 0:00:49]} 38... Rg5 {[%clk 0:00:17]} 39.
Re8 {[%clk 0:00:39.6]} 39... f5 {[%clk 0:00:16.8]} 40. Rf8 {[%clk 0:00:37.5]}
40... Rc3 {[%clk 0:00:16.3]} 41. Rf7+ {[%clk 0:00:31]} 41... Ka6 {[%clk
0:00:13.1]} 42. Rf3 {[%clk 0:00:30.4]} 42... Rc1 {[%clk 0:00:04.2]} 43. R7xf5
{[%clk 0:00:21.1]} 43... Rxf5 {[%clk 0:00:04.7]} 44. Rxf5 {[%clk 0:00:21.6]}
44... Rb1 {[%clk 0:00:04.9]} 45. Ra5+ {[%clk 0:00:18]} 45... Kb7 {[%clk
0:00:04.6]} 46. Bd5+ {[%clk 0:00:18.6]} 46... Nxd5 {[%clk 0:00:03.7]} 47. Rxd5
{[%clk 0:00:18.7]} 47... Rxb4 {[%clk 0:00:04.2]} 48. Kf3 {[%clk 0:00:19]} 48...
Kc6 {[%clk 0:00:02.7]} 49. Rd1 {[%clk 0:00:18]} 49... Rb3+ {[%clk 0:00:02.3]}
50. Kf4 {[%clk 0:00:18.2]} 50... Rb4+ {[%clk 0:00:03.2]} 51. Kf5 {[%clk
0:00:18.4]} 51... Kc7 {[%clk 0:00:03.1]} 52. g4 {[%clk 0:00:18]} 52... Rb5+
{[%clk 0:00:03.3]} 53. Kf6 {[%clk 0:00:18.2]} 53... Kc8 {[%clk 0:00:03]} 54. g5
{[%clk 0:00:18.1]} 54... Rb6+ {[%clk 0:00:03.6]} 55. Kf7 {[%clk 0:00:18.3]}
55... Rb7+ {[%clk 0:00:02.9]} 56. Kf8 {[%clk 0:00:18.1]} 56... Rb6 {[%clk
0:00:02.1]} 57. Kf7 {[%clk 0:00:16.8]} 57... Rb7+ {[%clk 0:00:02]} 58. Kg8
{[%clk 0:00:17]} 1-0